Workbook

Sheet Kalveboderne
A1: Vandområde | C1: Kalveboderne | AY1: Vandområde | BA1: Damhusåen
A3: Udlednings nr. | C3: UK11 | D3: UK12 | E3: UK15 | F3: UØX4 | AY3: Udlednings nr. | BA3: UD10b | BB3: UD10d | BC3: UD11b | BD3: UD12 | BE3: UD13 | BF3: UD14 | BG3: UD15 | BH3: UD16 | BI3: UD17 | BJ3: UD18 | BK3: UD19b | BL3: UD20b | BM3: UD21 | BN3: UD21b | BO3: UD24 | BP3: Sum
A4: Adresse | C4: Gåsebæk-renden | D4: Enghave Kanal | E4: Molestien | F4: KV til Kalveboderne 2028 | G4: SUM | AY4: Adresse | BA4: Nødoverløb Damhusåens renseanlæg | BB4: Hovedoverløb Damhus-ledning | BC4: Åhaven | BD4: Sønderkær | BE4: Vigerslev Allé | BF4: Gårdstedet | BG4: Heldbovej | BH4: Lykkebovej | BI4: Landlystvej | BJ4: Skyttegårdsvej | BK4: Sandhusvej | BL4: Hvidovre station | BM4: Vigerslev-parken N for Dæmningen | BN4: Nødoverløb ved Torpedo-bygværket | BO4: Roskildevej | BP4: -
A5: Kloakeringstype | B5: Status | C5: Fælles | D5: Fælles | E5: Separat | F5: - | G5: - | AY5: Kloakeringstype | AZ5: Status | BA5: Fælles | BB5: Fælles | BC5: Fælles | BD5: Fælles | BE5: Fælles | BF5: Fælles | BG5: Fælles | BH5: Fælles | BI5: Fælles | BJ5: Fælles | BK5: Fælles | BL5: Fælles | BM5: Fælles | BN5: Fælles | BO5: Fælles | BP5: -
B6: Plan | C6: Fælles | D6: Fælles | E6: Separat | F6: Separat | G6: - | AZ6: Plan | BA6: Fælles | BB6: Fælles | BC6: Fælles | BD6: Fælles | BE6: Fælles | BF6: Fælles | BG6: Fælles | BH6: Fælles | BI6: Fælles | BJ6: Fælles | BK6: Fælles | BL6: Fælles | BM6: Fælles | BN6: Fælles | BO6: Fælles | BP6: -
B7: Strategi | C7: Fælles | D7: Fælles | E7: Separat | F7: Separat | G7: - | AZ7: Strategi | BA7: Fælles | BB7: Fælles | BC7: Fælles | BD7: Fælles | BE7: Fælles | BF7: Fælles | BG7: Fælles | BH7: Fælles | BI7: Fælles | BJ7: Fælles | BK7: Fælles | BL7: Fælles | BM7: Fælles | BN7: Fælles | BO7: Fælles | BP7: -
A8: Reduceret areal ha | B8: Status | C8: 313.290322 | D8: 61.807142 | E8: 4.475851562 | F8: - | G8: =SUM(Tabel112[[#This Row],[Gåsebæk-renden]:[KV til Kalveboderne 2028]]) -> 379.5733156 | AY8: Reduceret areal ha | AZ8: Status | BA8: 62.09627 | BB8: 0 | BC8: 4.926299 | BD8: 13.292068 | BE8: 9.063189 | BF8: 1.454076 | BG8: 1.523395 | BH8: 3.503314 | BI8: 1.93898 | BJ8: 4.850912 | BK8: 2.3 | BL8: 1.07056 | BM8: 284.5 | BN8: 0 | BO8: 0 | BP8: =SUM(BA8:BO8) -> 390.519063
B9: Plan | C9: 313.290322 | D9: 61.807142 | E9: 4.475851562 | F9: 4.5125 | G9: =SUM(Tabel112[[#This Row],[Gåsebæk-renden]:[KV til Kalveboderne 2028]]) -> 384.0858156 | AZ9: Plan | BA9: 62.09627 | BB9: 0 | BC9: 4.926299 | BD9: 13.292068 | BE9: 9.063189 | BF9: 1.454076 | BG9: 1.523395 | BH9: 3.503314 | BI9: 1.93898 | BJ9: 4.850912 | BK9: 2.3 | BL9: 1.07056 | BM9: 284.5 | BN9: 0 | BO9: 0 | BP9: 390.519063
B10: Strategi | C10: 313.290322 | D10: 61.807142 | E10: 4.475851562 | F10: 90.25 | G10: =SUM(Tabel112[[#This Row],[Gåsebæk-renden]:[KV til Kalveboderne 2028]]) -> 469.8233156 | AZ10: Strategi | BA10: 62.09627 | BB10: 0 | BC10: 4.926299 | BD10: 13.292068 | BE10: 9.063189 | BF10: 1.454076 | BG10: 1.523395 | BH10: 3.503314 | BI10: 1.93898 | BJ10: 4.850912 | BK10: 2.3 | BL10: 1.07056 | BM10: 284.5 | BN10: 0 | BO10: 0 | BP10: 390.519063
A11: Maks udledning l/s | B11: Status | C11: 12000 | D11: 3000 | E11: 270 | F11: - | G11: =SUM(Tabel112[[#This Row],[Gåsebæk-renden]:[KV til Kalveboderne 2028]]) -> 15270 | AY11: Maks udledning l/s | AZ11: Status | BA11: 5000 | BB11: 5000 | BC11: 700 | BD11: 3000 | BE11: 1200 | BF11: 500 | BG11: 100 | BH11: 300 | BI11: 300 | BJ11: 500 | BK11: 500 | BL11: 200 | BM11: 1500 | BN11: 0 | BO11: 1000 | BP11: 19800
B12: Plan | C12: 12000 | D12: 3000 | E12: 270 | F12: 270 | G12: =SUM(Tabel112[[#This Row],[Gåsebæk-renden]:[KV til Kalveboderne 2028]]) -> 15540 | AZ12: Plan | BA12: 5000 | BB12: 5000 | BC12: 700 | BD12: 3000 | BE12: 1200 | BF12: 500 | BG12: 100 | BH12: 300 | BI12: 300 | BJ12: 500 | BK12: 500 | BL12: 200 | BM12: 1500 | BN12: 0 | BO12: 1000 | BP12: 19800
B13: Strategi | C13: 12000 | D13: 3000 | E13: 270 | F13: 5420 | G13: =SUM(Tabel112[[#This Row],[Gåsebæk-renden]:[KV til Kalveboderne 2028]]) -> 20690 | AZ13: Strategi | BA13: 5000 | BB13: 5000 | BC13: 700 | BD13: 3000 | BE13: 1200 | BF13: 500 | BG13: 100 | BH13: 300 | BI13: 300 | BJ13: 500 | BK13: 500 | BL13: 200 | BM13: 1500 | BN13: 0 | BO13: 1000 | BP13: 19800
A14: Overløbshyppighed antal/år | B14: Status | C14: 6 | D14: 1 | F14: - | G14: =SUM(Tabel112[[#This Row],[Gåsebæk-renden]:[KV til Kalveboderne 2028]]) -> 7 | AY14: Overløbshyppighed antal/år | AZ14: Status | BA14: 2 | BB14: 1 | BC14: 0.5 | BD14: 0.1 | BE14: 0.1 | BF14: 0.1 | BG14: 0.1 | BH14: 0.1 | BI14: 0.25 | BJ14: 0.3 | BK14: 0.1 | BL14: 0.1 | BM14: 0.2 | BN14: 0 | BO14: 13 | BP14: -
B15: Plan | C15: 1 | D15: 1 | E15: 0 | F15: 0 | G15: =SUM(Tabel112[[#This Row],[Gåsebæk-renden]:[KV til Kalveboderne 2028]]) -> 2 | AZ15: Plan | BA15: 2 | BB15: 1 | BC15: 0.5 | BD15: 0.1 | BE15: 0.1 | BF15: 0.1 | BG15: 0.1 | BH15: 0.1 | BI15: 0.25 | BJ15: 0.3 | BK15: 0.1 | BL15: 0.1 | BM15: 0.2 | BN15: 0 | BO15: 13 | BP15: -
B16: Strategi | C16: 0.3333333333 | D16: 0.5 | F16: 0 | G16: =SUM(Tabel112[[#This Row],[Gåsebæk-renden]:[KV til Kalveboderne 2028]]) -> 0.8333333333 | AZ16: Strategi | BA16: 1 | BB16: 0.1 | BC16: 0.05 | BD16: 0.01 | BE16: 0.01 | BF16: 0.01 | BG16: 0.01 | BH16: 0.01 | BI16: 0.025 | BJ16: 0.03 | BK16: 0.01 | BL16: 0.01 | BM16: 0.02 | BN16: 0 | BO16: 10 | BP16: -
A17: Vand m3/år | B17: Status | C17: 80745 | D17: 2646 | E17: 15491.09664 | F17: - | G17: =SUM(Tabel112[[#This Row],[Gåsebæk-renden]:[KV til Kalveboderne 2028]]) -> 98882.09664 | AY17: Vand m3/år | AZ17: Status | BA17: 3408 | BB17: 15000 | BC17: 500 | BD17: 1000 | BE17: 100 | BF17: 100 | BG17: 100 | BH17: 100 | BI17: 500 | BJ17: 100 | BK17: 100 | BL17: 100 | BM17: 500 | BN17: 0 | BO17: 8734 | BP17: =SUM(BA17:BO17) -> 30342
B18: Plan | C18: 12834.85833 | D18: 2513.7 | E18: 15491.09664 | F18: 25000 | G18: =SUM(Tabel112[[#This Row],[Gåsebæk-renden]:[KV til Kalveboderne 2028]]) -> 55839.65497 | AZ18: Plan | BA18: 3408 | BB18: 15000 | BC18: 500 | BD18: 1000 | BE18: 100 | BF18: 100 | BG18: 100 | BH18: 100 | BI18: 500 | BJ18: 100 | BK18: 100 | BL18: 100 | BM18: 500 | BN18: 0 | BO18: 8734 | BP18: 30342
B19: Strategi | C19: 1255.833333 | D19: 1323 | E19: 16265.65147 | F19: 320000 | G19: =SUM(Tabel112[[#This Row],[Gåsebæk-renden]:[KV til Kalveboderne 2028]]) -> 338844.4848 | AZ19: Strategi | BA19: 1704 | BB19: 1500 | BC19: 50 | BD19: 100 | BE19: 10 | BF19: 10 | BG19: 10 | BH19: 10 | BI19: 50 | BJ19: 10 | BK19: 10 | BL19: 10 | BM19: 50 | BN19: 0 | BO19: 780 | BP19: 4304
A20: COD kg/år | B20: Status | C20: 4037.25 | D20: 132.3 | E20: 2478.575463 | F20: - | G20: =SUM(Tabel112[[#This Row],[Gåsebæk-renden]:[KV til Kalveboderne 2028]]) -> 6648.125463 | AY20: COD kg/år | AZ20: Status | BA20: 170 | BB20: 750 | BC20: 25 | BD20: 50 | BE20: 5 | BF20: 5 | BG20: 5 | BH20: 5 | BI20: 25 | BJ20: 5 | BK20: 5 | BL20: 5 | BM20: 25 | BN20: 0 | BO20: 437 | BP20: 1517
B21: Plan | C21: 641.7429167 | D21: 125.685 | E21: 2478.575463 | F21: 4000 | G21: =SUM(Tabel112[[#This Row],[Gåsebæk-renden]:[KV til Kalveboderne 2028]]) -> 7246.003379 | AZ21: Plan | BA21: 170 | BB21: 750 | BC21: 25 | BD21: 50 | BE21: 5 | BF21: 5 | BG21: 5 | BH21: 5 | BI21: 25 | BJ21: 5 | BK21: 5 | BL21: 5 | BM21: 25 | BN21: 0 | BO21: 437 | BP21: 1517
B22: Strategi | C22: 62.79166667 | D22: 211.68 | E22: 2602.504236 | F22: 51200 | G22: =SUM(Tabel112[[#This Row],[Gåsebæk-renden]:[KV til Kalveboderne 2028]]) -> 54076.9759 | AZ22: Strategi | BA22: 85 | BB22: 75 | BC22: 2 | BD22: 5.9 | BE22: 0.5 | BF22: 0.5 | BG22: 0.5 | BH22: 0.5 | BI22: 2.5 | BJ22: 0.5 | BK22: 0.5 | BL22: 0.5 | BM22: 2.5 | BN22: 0 | BO22: 39 | BP22: 215.4
A23: Total N kg/år | B23: Status | C23: 161.49 | D23: 5.292 | E23: 154.9109664 | F23: - | G23: =SUM(Tabel112[[#This Row],[Gåsebæk-renden]:[KV til Kalveboderne 2028]]) -> 321.6929664 | AY23: Total N kg/år | AZ23: Status | BA23: 6.8 | BB23: 30 | BC23: 1 | BD23: 2 | BE23: 0.2 | BF23: 0.2 | BG23: 0.2 | BH23: 0.2 | BI23: 1 | BJ23: 0.2 | BK23: 0.2 | BL23: 0.2 | BM23: 1 | BN23: 0 | BO23: 17.5 | BP23: 60.7
B24: Plan | C24: 25.66971667 | D24: 5.0274 | E24: 154.9109664 | F24: 250 | G24: =SUM(Tabel112[[#This Row],[Gåsebæk-renden]:[KV til Kalveboderne 2028]]) -> 435.6080831 | AZ24: Plan | BA24: 6.8 | BB24: 30 | BC24: 1 | BD24: 2 | BE24: 0.2 | BF24: 0.2 | BG24: 0.2 | BH24: 0.2 | BI24: 1 | BJ24: 0.2 | BK24: 0.2 | BL24: 0.2 | BM24: 1 | BN24: 0 | BO24: 17.5 | BP24: 60.7
B25: Strategi | C25: 2.511666667 | D25: 13.23 | E25: 162.6565147 | F25: 3200 | G25: =SUM(Tabel112[[#This Row],[Gåsebæk-renden]:[KV til Kalveboderne 2028]]) -> 3378.398181 | AZ25: Strategi | BA25: 3.4 | BB25: 3 | BC25: 0.08 | BD25: 0.2 | BE25: 0.02 | BF25: 0.02 | BG25: 0.02 | BH25: 0.02 | BI25: 0.1 | BJ25: 0.02 | BK25: 0.02 | BL25: 0.02 | BM25: 0.1 | BN25: 0 | BO25: 1.6 | BP25: 8.62
A26: Total P kg/år | B26: Status | C26: 40.3725 | D26: 1.323 | E26: 38.7277416 | F26: - | G26: =SUM(Tabel112[[#This Row],[Gåsebæk-renden]:[KV til Kalveboderne 2028]]) -> 80.4232416 | AY26: Total P kg/år | AZ26: Status | BA26: 1.7 | BB26: 7.5 | BC26: 0.25 | BD26: 0.5 | BE26: 0.05 | BF26: 0.05 | BG26: 0.05 | BH26: 0.05 | BI26: 0.25 | BJ26: 0.05 | BK26: 0.05 | BL26: 0.05 | BM26: 0.25 | BN26: 0 | BO26: 4.4 | BP26: 15.2
B27: Plan | C27: 6.417429167 | D27: 1.25685 | E27: 38.7277416 | F27: 62.5 | G27: =SUM(Tabel112[[#This Row],[Gåsebæk-renden]:[KV til Kalveboderne 2028]]) -> 108.9020208 | AZ27: Plan | BA27: 1.7 | BB27: 7.5 | BC27: 0.25 | BD27: 0.5 | BE27: 0.05 | BF27: 0.05 | BG27: 0.05 | BH27: 0.05 | BI27: 0.25 | BJ27: 0.05 | BK27: 0.05 | BL27: 0.05 | BM27: 0.25 | BN27: 0 | BO27: 4.4 | BP27: 15.2
B28: Strategi | C28: 0.6279166667 | D28: 3.3075 | E28: 40.66412868 | F28: 800 | G28: =SUM(Tabel112[[#This Row],[Gåsebæk-renden]:[KV til Kalveboderne 2028]]) -> 844.5995454 | AZ28: Strategi | BA28: 0.8 | BB28: 0.75 | BC28: 0.02 | BD28: 0.06 | BE28: 0.005 | BF28: 0.005 | BG28: 0.005 | BH28: 0.005 | BI28: 0.025 | BJ28: 0.005 | BK28: 0.005 | BL28: 0.005 | BM28: 0.025 | BN28: 0 | BO28: 0.4 | BP28: =SUM(BA28:BO28) -> 2.115
